[Event "Titled Tuesday Blitz May 2 Early 2023"]
[White "Chigaev, Maksim"]
[Black "Kravtsiv, Martyn"]
[WhiteFideId "4108116"]
[BlackFideId "14113147"]
[WhiteElo "2547"]
[BlackElo "2695"]
[Result "1-0"]
[Round "07"]
[TimeControl "180+2"]
[Date "2023.05.03"]
[WhiteClock "0:00:00"]
[BlackClock "0:00:00"]

1. d4 {[%clk 0:00:01]}  d5 {[%clk 0:00:01]} 2. Nf3 {[%clk 0:00:01]}  Nf6 {[%clk 0:00:01]} 3. c4 {[%clk 0:00:01]}  e6 {[%clk 0:00:01]} 4. g3 {[%clk 0:00:01]}  Be7 {[%clk 0:00:01]} 5. Bg2 {[%clk 0:00:01]}  O-O {[%clk 0:00:01]} 6. O-O {[%clk 0:00:01]}  c6 {[%clk 0:00:01]} 7. Qc2 {[%clk 0:00:01]}  b6 {[%clk 0:00:01]} 8. Nbd2 {[%clk 0:00:01]}  Bb7 {[%clk 0:00:01]} 9. e4 {[%clk 0:00:01]}  c5 {[%clk 0:00:01]} 10. exd5 {[%clk 0:00:01]}  exd5 {[%clk 0:00:01]} 11. Ne5 {[%clk 0:00:01]}  cxd4 {[%clk 0:00:01]} 12. Nb3 {[%clk 0:00:01]}  Nbd7 {[%clk 0:00:01]} 13. Nxd7 {[%clk 0:00:01]}  Qxd7 {[%clk 0:00:01]} 14. Nxd4 {[%clk 0:00:01]}  Rac8 {[%clk 0:00:01]} 15. Qf5 {[%clk 0:00:01]}  Rxc4 {[%clk 0:00:01]} 16. Qxd7 {[%clk 0:00:01]}  Nxd7 {[%clk 0:00:01]} 17. Nf5 {[%clk 0:00:01]}  Bc5 {[%clk 0:00:01]} 18. b3 {[%clk 0:00:01]}  Rc2 {[%clk 0:00:01]} 19. Be3 {[%clk 0:00:01]}  Nf6 {[%clk 0:00:01]} 20. Bxc5 {[%clk 0:00:00]}  Rxc5 {[%clk 0:00:01]} 21. Rfe1 {[%clk 0:00:00]}  g6 {[%clk 0:00:01]} 22. Re7 {[%clk 0:00:00]}  gxf5 {[%clk 0:00:01]} 23. Rxb7 {[%clk 0:00:00]}  Rd8 {[%clk 0:00:01]} 24. Rxa7 {[%clk 0:00:00]}  d4 {[%clk 0:00:01]} 25. Rd1 {[%clk 0:00:00]}  d3 {[%clk 0:00:01]} 26. Ra8 {[%clk 0:00:00]}  Rxa8 {[%clk 0:00:01]} 27. Bxa8 {[%clk 0:00:00]}  Rc3 {[%clk 0:00:01]} 28. Kg2 {[%clk 0:00:00]}  Ne4 {[%clk 0:00:01]} 29. Kf3 {[%clk 0:00:00]}  Nc5 {[%clk 0:00:00]} 30. Ke3 {[%clk 0:00:00]}  Rc2 {[%clk 0:00:00]} 31. Rd2 {[%clk 0:00:00]}  Rc1 {[%clk 0:00:00]} 32. b4 {[%clk 0:00:00]}  Re1+ {[%clk 0:00:00]} 33. Kd4 {[%clk 0:00:00]}  Na6 {[%clk 0:00:00]} 34. a3 {[%clk 0:00:00]}  Nc7 {[%clk 0:00:00]} 35. Bc6 {[%clk 0:00:00]}  Rc1 {[%clk 0:00:00]} 36. Bd7 {[%clk 0:00:00]}  f4 {[%clk 0:00:00]} 37. gxf4 {[%clk 0:00:00]}  Rh1 {[%clk 0:00:00]} 38. h3 {[%clk 0:00:00]}  Kf8 {[%clk 0:00:00]} 39. Kxd3 {[%clk 0:00:00]}  Ke7 {[%clk 0:00:00]} 40. Bf5 {[%clk 0:00:00]}  Ra1 {[%clk 0:00:00]} 41. Kc4 {[%clk 0:00:00]}  Kf6 {[%clk 0:00:00]} 42. Bg4 {[%clk 0:00:00]}  Rxa3 {[%clk 0:00:00]} 43. Rd6+ {[%clk 0:00:00]}  Ke7 {[%clk 0:00:00]} 44. Rd7+ {[%clk 0:00:00]} 1-0


[Site "https://www.chess.com"]

[Event "Titled Tuesday Blitz May 2 Early 2023"]
[White "Sieciechowicz, Marcin"]
[Black "Kramnik, Vladimir"]
[WhiteFideId "1130170"]
[BlackFideId "4101588"]
[WhiteElo "2302"]
[BlackElo "2712"]
[Result "1/2-1/2"]
[Round "07"]
[TimeControl "180+2"]
[Date "2023.05.03"]
[WhiteClock "0:00:00"]
[BlackClock "0:00:00"]

1. d4 {[%clk 0:00:01]}  Nf6 {[%clk 0:00:01]} 2. c4 {[%clk 0:00:01]}  e6 {[%clk 0:00:01]} 3. Nc3 {[%clk 0:00:01]}  d5 {[%clk 0:00:01]} 4. cxd5 {[%clk 0:00:01]}  exd5 {[%clk 0:00:01]} 5. Bg5 {[%clk 0:00:01]}  c6 {[%clk 0:00:01]} 6. e3 {[%clk 0:00:01]}  h6 {[%clk 0:00:01]} 7. Bf4 {[%clk 0:00:01]}  Bd6 {[%clk 0:00:01]} 8. Bxd6 {[%clk 0:00:01]}  Qxd6 {[%clk 0:00:01]} 9. Bd3 {[%clk 0:00:01]}  O-O {[%clk 0:00:01]} 10. h3 {[%clk 0:00:01]}  Re8 {[%clk 0:00:01]} 11. Nf3 {[%clk 0:00:01]}  Nbd7 {[%clk 0:00:01]} 12. Qc2 {[%clk 0:00:01]}  Qe7 {[%clk 0:00:01]} 13. O-O {[%clk 0:00:01]}  Ne4 {[%clk 0:00:01]} 14. Nd2 {[%clk 0:00:01]}  Nxd2 {[%clk 0:00:01]} 15. Qxd2 {[%clk 0:00:01]}  Nf6 {[%clk 0:00:01]} 16. Rfe1 {[%clk 0:00:01]}  Bd7 {[%clk 0:00:01]} 17. Rab1 {[%clk 0:00:01]}  Rad8 {[%clk 0:00:01]} 18. Na4 {[%clk 0:00:01]}  b6 {[%clk 0:00:01]} 19. Nc3 {[%clk 0:00:01]}  c5 {[%clk 0:00:01]} 20. Rbd1 {[%clk 0:00:01]}  c4 {[%clk 0:00:01]} 21. Bb1 {[%clk 0:00:01]}  b5 {[%clk 0:00:01]} 22. a3 {[%clk 0:00:01]}  Qd6 {[%clk 0:00:01]} 23. f3 {[%clk 0:00:01]}  Qg3 {[%clk 0:00:01]} 24. Qf2 {[%clk 0:00:01]}  Qxf2+ {[%clk 0:00:01]} 25. Kxf2 {[%clk 0:00:01]}  a5 {[%clk 0:00:01]} 26. e4 {[%clk 0:00:01]}  dxe4 {[%clk 0:00:01]} 27. Nxe4 {[%clk 0:00:01]}  b4 {[%clk 0:00:00]} 28. axb4 {[%clk 0:00:01]}  axb4 {[%clk 0:00:00]} 29. Nxf6+ {[%clk 0:00:01]}  gxf6 {[%clk 0:00:00]} 30. Rxe8+ {[%clk 0:00:01]}  Bxe8 {[%clk 0:00:00]} 31. d5 {[%clk 0:00:00]}  Kf8 {[%clk 0:00:00]} 32. Ke3 {[%clk 0:00:00]}  Ba4 {[%clk 0:00:00]} 33. Rc1 {[%clk 0:00:00]}  Bb3 {[%clk 0:00:00]} 34. Be4 {[%clk 0:00:00]}  Ke7 {[%clk 0:00:00]} 35. Ra1 {[%clk 0:00:00]}  f5 {[%clk 0:00:00]} 36. Ra7+ {[%clk 0:00:00]}  Kf6 {[%clk 0:00:00]} 37. Ra6+ {[%clk 0:00:00]}  Kg7 {[%clk 0:00:00]} 38. Bxf5 {[%clk 0:00:00]}  Rxd5 {[%clk 0:00:00]} 39. g4 {[%clk 0:00:00]}  Re5+ {[%clk 0:00:00]} 40. Kf4 {[%clk 0:00:00]}  Re2 {[%clk 0:00:00]} 41. Rb6 {[%clk 0:00:00]}  Rxb2 {[%clk 0:00:00]} 42. Rxb4 {[%clk 0:00:00]}  Rd2 {[%clk 0:00:00]} 43. h4 {[%clk 0:00:00]}  Ba2 {[%clk 0:00:00]} 44. Rb7 {[%clk 0:00:00]}  c3 {[%clk 0:00:00]} 45. Rc7 {[%clk 0:00:00]}  Rd4+ {[%clk 0:00:00]} 46. Ke3 {[%clk 0:00:00]}  Rc4 {[%clk 0:00:00]} 47. Rxc4 {[%clk 0:00:00]}  Bxc4 {[%clk 0:00:00]} 48. Kd4 {[%clk 0:00:00]}  Be2 {[%clk 0:00:00]} 49. Be4 {[%clk 0:00:00]}  Bxf3 {[%clk 0:00:00]} 50. Bc2 {[%clk 0:00:00]}  Bxg4 {[%clk 0:00:00]} 51. Kxc3 {[%clk 0:00:00]}  Kf6 {[%clk 0:00:00]} 52. Kd4 {[%clk 0:00:00]}  Bf5 {[%clk 0:00:00]} 53. Bd1 {[%clk 0:00:00]}  Ke6 {[%clk 0:00:00]} 54. Bb3+ {[%clk 0:00:00]}  Kf6 {[%clk 0:00:00]} 55. Bd1 {[%clk 0:00:00]}  Bb1 {[%clk 0:00:00]} 56. Ke3 {[%clk 0:00:00]}  Kf5 {[%clk 0:00:00]} 57. Kf3 {[%clk 0:00:00]}  Be4+ {[%clk 0:00:00]} 58. Kg3 {[%clk 0:00:00]}  Ke5 {[%clk 0:00:00]} 59. Bh5 {[%clk 0:00:00]}  f5 {[%clk 0:00:00]} 60. Kf2 {[%clk 0:00:00]}  f4 {[%clk 0:00:00]} 61. Bg4 {[%clk 0:00:00]}  Kf6 {[%clk 0:00:00]} 62. Bd1 {[%clk 0:00:00]}  Kf5 {[%clk 0:00:00]} 63. Be2 {[%clk 0:00:00]}  Bd5 {[%clk 0:00:00]} 64. Bd1 {[%clk 0:00:00]}  Bc6 {[%clk 0:00:00]} 65. Be2 {[%clk 0:00:00]}  Ke5 {[%clk 0:00:00]} 66. Bd1 {[%clk 0:00:00]}  Kd4 {[%clk 0:00:00]} 67. Be2 {[%clk 0:00:00]}  Be4 {[%clk 0:00:00]} 68. Bd1 {[%clk 0:00:00]}  Ke5 {[%clk 0:00:00]} 69. Be2 {[%clk 0:00:00]}  Kf5 {[%clk 0:00:00]} 70. Bd1 {[%clk 0:00:00]}  Kf6 {[%clk 0:00:00]} 71. Be2 {[%clk 0:00:00]}  Kg6 {[%clk 0:00:00]} 72. Bd1 {[%clk 0:00:00]}  h5 {[%clk 0:00:00]} 73. Be2 {[%clk 0:00:00]}  Bf5 {[%clk 0:00:00]} 74. Bd1 {[%clk 0:00:00]}  Bg4 {[%clk 0:00:00]} 75. Bc2+ {[%clk 0:00:00]}  Kf6 {[%clk 0:00:00]} 76. Bd3 {[%clk 0:00:00]}  Ke5 {[%clk 0:00:00]} 77. Bg6 {[%clk 0:00:00]}  Kd4 {[%clk 0:00:00]} 78. Be8 {[%clk 0:00:00]}  Ke4 {[%clk 0:00:00]} 79. Bf7 {[%clk 0:00:00]}  f3 {[%clk 0:00:00]} 80. Be8 {[%clk 0:00:00]}  Ke5 {[%clk 0:00:00]} 81. Bc6 {[%clk 0:00:00]}  Kf4 {[%clk 0:00:00]} 82. Bb7 {[%clk 0:00:00]}  Kf5 {[%clk 0:00:00]} 83. Bxf3 {[%clk 0:00:00]}  Bxf3 {[%clk 0:00:00]} 84. Kxf3 {[%clk 0:00:00]}  Ke5 {[%clk 0:00:00]} 85. Ke3 {[%clk 0:00:00]}  Kf5 {[%clk 0:00:00]} 86. Kf3 {[%clk 0:00:00]}  Ke5 {[%clk 0:00:00]} 87. Ke3 {[%clk 0:00:00]}  Kf5 {[%clk 0:00:00]} 88. Kf3 {[%clk 0:00:00]} 1/2-1/2


[Site "https://www.chess.com"]

[Event "Titled Tuesday Blitz May 2 Early 2023"]
[White "Fernandez Guillen, Ernesto J."]
[Black "Asis Gargatagli, Hipolito"]
[WhiteFideId "3512428"]
[BlackFideId "2260735"]
[WhiteElo "2423"]
[BlackElo "2557"]
[Result "0-1"]
[Round "07"]
[TimeControl "180+2"]
[Date "2023.05.03"]
[WhiteClock "0:00:00"]
[BlackClock "0:00:00"]

1. e4 {[%clk 0:00:01]}  c5 {[%clk 0:00:01]} 2. Nf3 {[%clk 0:00:01]}  d6 {[%clk 0:00:01]} 3. d4 {[%clk 0:00:01]}  cxd4 {[%clk 0:00:01]} 4. Nxd4 {[%clk 0:00:01]}  Nf6 {[%clk 0:00:01]} 5. Nc3 {[%clk 0:00:01]}  a6 {[%clk 0:00:01]} 6. Bc4 {[%clk 0:00:01]}  e6 {[%clk 0:00:01]} 7. Bb3 {[%clk 0:00:01]}  Nbd7 {[%clk 0:00:01]} 8. Bg5 {[%clk 0:00:01]}  Nc5 {[%clk 0:00:01]} 9. f4 {[%clk 0:00:01]}  Be7 {[%clk 0:00:01]} 10. Qe2 {[%clk 0:00:01]}  h6 {[%clk 0:00:01]} 11. Bxf6 {[%clk 0:00:01]}  Bxf6 {[%clk 0:00:01]} 12. O-O-O {[%clk 0:00:01]}  Qc7 {[%clk 0:00:01]} 13. Rhe1 {[%clk 0:00:01]}  O-O {[%clk 0:00:01]} 14. g4 {[%clk 0:00:01]}  b5 {[%clk 0:00:01]} 15. g5 {[%clk 0:00:01]}  hxg5 {[%clk 0:00:01]} 16. e5 {[%clk 0:00:01]}  dxe5 {[%clk 0:00:01]} 17. fxe5 {[%clk 0:00:01]}  Be7 {[%clk 0:00:01]} 18. h4 {[%clk 0:00:01]}  Bb7 {[%clk 0:00:01]} 19. Qh5 {[%clk 0:00:01]}  Rfd8 {[%clk 0:00:01]} 20. hxg5 {[%clk 0:00:01]}  g6 {[%clk 0:00:01]} 21. Qh4 {[%clk 0:00:01]}  Bf8 {[%clk 0:00:01]} 22. Rd2 {[%clk 0:00:01]}  Bg7 {[%clk 0:00:01]} 23. Rh2 {[%clk 0:00:01]}  b4 {[%clk 0:00:01]} 24. Qh7+ {[%clk 0:00:01]}  Kf8 {[%clk 0:00:01]} 25. Nxe6+ {[%clk 0:00:00]}  Nxe6 {[%clk 0:00:01]} 26. Bxe6 {[%clk 0:00:00]}  Re8 {[%clk 0:00:00]} 27. Nd5 {[%clk 0:00:00]}  Bxd5 {[%clk 0:00:00]} 28. Bxd5 {[%clk 0:00:00]}  Rxe5 {[%clk 0:00:00]} 29. Rd1 {[%clk 0:00:00]}  Rd8 {[%clk 0:00:00]} 30. Rhd2 {[%clk 0:00:00]}  Rexd5 {[%clk 0:00:00]} 31. Rxd5 {[%clk 0:00:00]}  Qf4+ {[%clk 0:00:00]} 32. R5d2 {[%clk 0:00:00]}  Qxg5 {[%clk 0:00:00]} 33. Qh2 {[%clk 0:00:00]}  Bh6 {[%clk 0:00:00]} 34. Kb1 {[%clk 0:00:00]}  Rxd2 {[%clk 0:00:00]} 0-1


[Site "https://www.chess.com"]

[Event "Titled Tuesday Blitz May 2 Early 2023"]
[White "Karthik Rajaa"]
[Black "Livaic, Leon"]
[WhiteFideId "25035215"]
[BlackFideId "14531534"]
[WhiteElo "2215"]
[BlackElo "2509"]
[Result "0-1"]
[Round "07"]
[TimeControl "180+2"]
[Date "2023.05.03"]
[WhiteClock "0:00:00"]
[BlackClock "0:00:00"]

1. Nf3 {[%clk 0:00:01]}  Nf6 {[%clk 0:00:01]} 2. c4 {[%clk 0:00:01]}  e6 {[%clk 0:00:01]} 3. Nc3 {[%clk 0:00:01]}  d5 {[%clk 0:00:01]} 4. e3 {[%clk 0:00:01]}  b6 {[%clk 0:00:01]} 5. b3 {[%clk 0:00:01]}  Bb7 {[%clk 0:00:01]} 6. Bb2 {[%clk 0:00:01]}  Bd6 {[%clk 0:00:01]} 7. cxd5 {[%clk 0:00:01]}  exd5 {[%clk 0:00:01]} 8. g3 {[%clk 0:00:01]}  O-O {[%clk 0:00:01]} 9. Bg2 {[%clk 0:00:01]}  c6 {[%clk 0:00:01]} 10. O-O {[%clk 0:00:01]}  Re8 {[%clk 0:00:01]} 11. d3 {[%clk 0:00:01]}  Nbd7 {[%clk 0:00:01]} 12. Ne2 {[%clk 0:00:01]}  a5 {[%clk 0:00:01]} 13. a3 {[%clk 0:00:01]}  Qe7 {[%clk 0:00:01]} 14. Qc2 {[%clk 0:00:01]}  Ne5 {[%clk 0:00:01]} 15. Nxe5 {[%clk 0:00:01]}  Bxe5 {[%clk 0:00:01]} 16. Bxe5 {[%clk 0:00:01]}  Qxe5 {[%clk 0:00:01]} 17. h3 {[%clk 0:00:01]}  Rac8 {[%clk 0:00:01]} 18. d4 {[%clk 0:00:01]}  Qd6 {[%clk 0:00:01]} 19. b4 {[%clk 0:00:01]}  axb4 {[%clk 0:00:01]} 20. axb4 {[%clk 0:00:01]}  Ra8 {[%clk 0:00:01]} 21. Qb2 {[%clk 0:00:01]}  Ba6 {[%clk 0:00:01]} 22. Rfb1 {[%clk 0:00:00]}  Bd3 {[%clk 0:00:01]} 23. Rxa8 {[%clk 0:00:00]}  Rxa8 {[%clk 0:00:01]} 24. Rc1 {[%clk 0:00:00]}  Bc4 {[%clk 0:00:01]} 25. Nc3 {[%clk 0:00:00]}  b5 {[%clk 0:00:01]} 26. e4 {[%clk 0:00:00]}  dxe4 {[%clk 0:00:01]} 27. Nxe4 {[%clk 0:00:00]}  Nxe4 {[%clk 0:00:01]} 28. Bxe4 {[%clk 0:00:00]}  Ra2 {[%clk 0:00:01]} 29. Qc3 {[%clk 0:00:00]}  g6 {[%clk 0:00:01]} 30. Bd3 {[%clk 0:00:00]}  Bd5 {[%clk 0:00:01]} 31. Qe1 {[%clk 0:00:00]}  Qf6 {[%clk 0:00:01]} 32. Rd1 {[%clk 0:00:00]}  Qf3 {[%clk 0:00:00]} 33. Qe8+ {[%clk 0:00:00]}  Kg7 {[%clk 0:00:00]} 34. Qe5+ {[%clk 0:00:00]}  Kh6 {[%clk 0:00:00]} 35. Qf4+ {[%clk 0:00:00]}  Qxf4 {[%clk 0:00:00]} 36. gxf4 {[%clk 0:00:00]}  Rb2 {[%clk 0:00:00]} 37. Bf1 {[%clk 0:00:00]}  Rxb4 {[%clk 0:00:00]} 38. Bg2 {[%clk 0:00:00]}  Kg7 {[%clk 0:00:00]} 39. Bxd5 {[%clk 0:00:00]}  cxd5 {[%clk 0:00:00]} 40. Kg2 {[%clk 0:00:00]}  Kf6 {[%clk 0:00:00]} 41. Kf3 {[%clk 0:00:00]}  Rb3+ {[%clk 0:00:00]} 42. Kg2 {[%clk 0:00:00]}  Kf5 {[%clk 0:00:00]} 43. Re1 {[%clk 0:00:00]}  f6 {[%clk 0:00:00]} 44. Re7 {[%clk 0:00:00]}  Rd3 {[%clk 0:00:00]} 45. Rb7 {[%clk 0:00:00]}  Rxd4 {[%clk 0:00:00]} 46. Rxb5 {[%clk 0:00:00]}  Kxf4 {[%clk 0:00:00]} 47. Rb7 {[%clk 0:00:00]}  h5 {[%clk 0:00:00]} 48. Rb6 {[%clk 0:00:00]}  Kf5 {[%clk 0:00:00]} 49. Kf3 {[%clk 0:00:00]}  Rd3+ {[%clk 0:00:00]} 50. Kg2 {[%clk 0:00:00]}  h4 {[%clk 0:00:00]} 51. Rd6 {[%clk 0:00:00]}  g5 {[%clk 0:00:00]} 52. Rd8 {[%clk 0:00:00]}  Rd4 {[%clk 0:00:00]} 53. Rd7 {[%clk 0:00:00]}  Ke6 {[%clk 0:00:00]} 54. Rd8 {[%clk 0:00:00]}  Rf4 {[%clk 0:00:00]} 55. Ra8 {[%clk 0:00:00]}  Ke5 {[%clk 0:00:00]} 56. Ra5 {[%clk 0:00:00]}  Rc4 {[%clk 0:00:00]} 57. Ra8 {[%clk 0:00:00]}  Rc6 {[%clk 0:00:00]} 58. Re8+ {[%clk 0:00:00]}  Kd4 {[%clk 0:00:00]} 59. Kf3 {[%clk 0:00:00]}  Kd3 {[%clk 0:00:00]} 60. Re3+ {[%clk 0:00:00]}  Kc2 {[%clk 0:00:00]} 61. Re7 {[%clk 0:00:00]}  Rc3+ {[%clk 0:00:00]} 62. Kg2 {[%clk 0:00:00]}  d4 {[%clk 0:00:00]} 63. Re6 {[%clk 0:00:00]}  d3 {[%clk 0:00:00]} 0-1


[Site "https://www.chess.com"]

[Event "Titled Tuesday Blitz May 2 Early 2023"]
[White "Paravyan, David"]
[Black "Sammed Jaykumar, Shete"]
[WhiteFideId "4194985"]
[BlackFideId "5073421"]
[WhiteElo "2563"]
[BlackElo "2278"]
[Result "0-1"]
[Round "07"]
[TimeControl "180+2"]
[Date "2023.05.03"]
[WhiteClock "0:00:00"]
[BlackClock "0:00:00"]

1. e4 {[%clk 0:00:01]}  c5 {[%clk 0:00:01]} 2. Nf3 {[%clk 0:00:01]}  d6 {[%clk 0:00:01]} 3. d4 {[%clk 0:00:01]}  cxd4 {[%clk 0:00:01]} 4. Nxd4 {[%clk 0:00:01]}  Nf6 {[%clk 0:00:01]} 5. Nc3 {[%clk 0:00:01]}  a6 {[%clk 0:00:01]} 6. Be3 {[%clk 0:00:01]}  e5 {[%clk 0:00:01]} 7. Nb3 {[%clk 0:00:01]}  Be6 {[%clk 0:00:01]} 8. f3 {[%clk 0:00:01]}  h5 {[%clk 0:00:01]} 9. Nd5 {[%clk 0:00:01]}  Nxd5 {[%clk 0:00:01]} 10. exd5 {[%clk 0:00:01]}  Bf5 {[%clk 0:00:01]} 11. Be2 {[%clk 0:00:01]}  Nd7 {[%clk 0:00:01]} 12. O-O {[%clk 0:00:01]}  Be7 {[%clk 0:00:01]} 13. a4 {[%clk 0:00:01]}  O-O {[%clk 0:00:01]} 14. a5 {[%clk 0:00:01]}  Bg6 {[%clk 0:00:01]} 15. c4 {[%clk 0:00:01]}  Rc8 {[%clk 0:00:01]} 16. Kh1 {[%clk 0:00:01]}  Bg5 {[%clk 0:00:01]} 17. Bg1 {[%clk 0:00:01]}  f5 {[%clk 0:00:01]} 18. Nd2 {[%clk 0:00:01]}  h4 {[%clk 0:00:01]} 19. b4 {[%clk 0:00:01]}  h3 {[%clk 0:00:01]} 20. gxh3 {[%clk 0:00:01]}  Bf4 {[%clk 0:00:01]} 21. Qe1 {[%clk 0:00:01]}  e4 {[%clk 0:00:01]} 22. Nb3 {[%clk 0:00:00]}  Qf6 {[%clk 0:00:00]} 23. Nd4 {[%clk 0:00:00]}  Be5 {[%clk 0:00:00]} 24. Ne6 {[%clk 0:00:00]}  exf3 {[%clk 0:00:00]} 25. Bxf3 {[%clk 0:00:00]}  Bxa1 {[%clk 0:00:00]} 26. Nxf8 {[%clk 0:00:00]}  Kxf8 {[%clk 0:00:00]} 27. Qxa1 {[%clk 0:00:00]}  Qxa1 {[%clk 0:00:00]} 28. Rxa1 {[%clk 0:00:00]}  Rxc4 {[%clk 0:00:00]} 29. b5 {[%clk 0:00:00]}  axb5 {[%clk 0:00:00]} 30. Be2 {[%clk 0:00:00]}  f4 {[%clk 0:00:00]} 31. Ba7 {[%clk 0:00:00]}  Be4+ {[%clk 0:00:00]} 32. Kg1 {[%clk 0:00:00]}  Rc2 {[%clk 0:00:00]} 33. Bxb5 {[%clk 0:00:00]}  Ne5 {[%clk 0:00:00]} 34. a6 {[%clk 0:00:00]}  bxa6 {[%clk 0:00:00]} 35. Rxa6 {[%clk 0:00:00]}  Nf3+ {[%clk 0:00:00]} 36. Kf1 {[%clk 0:00:00]}  Nxh2+ {[%clk 0:00:00]} 37. Ke1 {[%clk 0:00:00]}  Nf3+ {[%clk 0:00:00]} 38. Kd1 {[%clk 0:00:00]}  Rd2+ {[%clk 0:00:00]} 39. Kc1 {[%clk 0:00:00]}  Rxd5 {[%clk 0:00:00]} 40. Bc6 {[%clk 0:00:00]}  Re5 {[%clk 0:00:00]} 41. Bb8 {[%clk 0:00:00]}  Rc5+ {[%clk 0:00:00]} 42. Kd1 {[%clk 0:00:00]}  Rxc6 {[%clk 0:00:00]} 43. Bxd6+ {[%clk 0:00:00]}  Kf7 {[%clk 0:00:00]} 44. Rxc6 {[%clk 0:00:00]}  Bxc6 {[%clk 0:00:00]} 45. Bxf4 {[%clk 0:00:00]}  Bd7 {[%clk 0:00:00]} 46. Ke2 {[%clk 0:00:00]}  Ng1+ {[%clk 0:00:00]} 47. Ke3 {[%clk 0:00:00]}  Nxh3 {[%clk 0:00:00]} 48. Bc7 {[%clk 0:00:00]}  Ng5 {[%clk 0:00:00]} 49. Bb8 {[%clk 0:00:00]}  Ne6 {[%clk 0:00:00]} 50. Bh2 {[%clk 0:00:00]}  Kf6 {[%clk 0:00:00]} 51. Bd6 {[%clk 0:00:00]}  Kf5 {[%clk 0:00:00]} 52. Bh2 {[%clk 0:00:00]}  g5 {[%clk 0:00:00]} 53. Bg3 {[%clk 0:00:00]}  g4 {[%clk 0:00:00]} 54. Bb8 {[%clk 0:00:00]}  Bc6 {[%clk 0:00:00]} 55. Bh2 {[%clk 0:00:00]}  Ng5 {[%clk 0:00:00]} 56. Bc7 {[%clk 0:00:00]}  Ne4 {[%clk 0:00:00]} 57. Bb8 {[%clk 0:00:00]}  Ba4 {[%clk 0:00:00]} 58. Bc7 {[%clk 0:00:00]}  Bd1 {[%clk 0:00:00]} 59. Bb8 {[%clk 0:00:00]}  g3 {[%clk 0:00:00]} 60. Bxg3 {[%clk 0:00:00]}  Nxg3 {[%clk 0:00:00]} 61. Kd2 {[%clk 0:00:00]}  Bg4 {[%clk 0:00:00]} 62. Ke3 {[%clk 0:00:00]}  Ne4 {[%clk 0:00:00]} 63. Kd4 {[%clk 0:00:00]}  Kf4 {[%clk 0:00:00]} 64. Kd3 {[%clk 0:00:00]}  Ke5 {[%clk 0:00:00]} 65. Ke3 {[%clk 0:00:00]}  Nc5 {[%clk 0:00:00]} 66. Kd2 {[%clk 0:00:00]}  Kd4 {[%clk 0:00:00]} 67. Kc2 {[%clk 0:00:00]}  Bf3 {[%clk 0:00:00]} 68. Kd2 {[%clk 0:00:00]}  Nb3+ {[%clk 0:00:00]} 69. Kc2 {[%clk 0:00:00]}  Kc4 {[%clk 0:00:00]} 70. Kb2 {[%clk 0:00:00]}  Be4 {[%clk 0:00:00]} 71. Ka2 {[%clk 0:00:00]}  Kc3 {[%clk 0:00:00]} 72. Ka3 {[%clk 0:00:00]}  Bb1 {[%clk 0:00:00]} 73. Ka4 {[%clk 0:00:00]}  Nd4 {[%clk 0:00:00]} 74. Ka3 {[%clk 0:00:00]}  Nb5+ {[%clk 0:00:00]} 75. Ka4 {[%clk 0:00:00]}  Kc4 {[%clk 0:00:00]} 76. Ka5 {[%clk 0:00:00]}  Kc5 {[%clk 0:00:00]} 77. Ka6 {[%clk 0:00:00]}  Nd6 {[%clk 0:00:00]} 78. Ka5 {[%clk 0:00:00]}  Bc2 {[%clk 0:00:00]} 79. Ka6 {[%clk 0:00:00]}  Bd1 {[%clk 0:00:00]} 80. Ka5 {[%clk 0:00:00]}  Nb7+ {[%clk 0:00:00]} 81. Ka6 {[%clk 0:00:00]}  Kc6 {[%clk 0:00:00]} 82. Ka7 {[%clk 0:00:00]}  Kc7 {[%clk 0:00:00]} 83. Ka6 {[%clk 0:00:00]}  Be2+ {[%clk 0:00:00]} 84. Ka7 {[%clk 0:00:00]}  Nd6 {[%clk 0:00:00]} 85. Ka8 {[%clk 0:00:00]}  Bd3 {[%clk 0:00:00]} 86. Ka7 {[%clk 0:00:00]}  Nc8+ {[%clk 0:00:00]} 87. Ka8 {[%clk 0:00:00]}  Be4# {[%clk 0:00:00]} 0-1


[Site "https://www.chess.com"]

[Event "Titled Tuesday Blitz May 2 Early 2023"]
[White "Galchenko, Matvey"]
[Black "Andreikin, Dmitry"]
[WhiteFideId "24175480"]
[BlackFideId "4158814"]
[WhiteElo "2423"]
[BlackElo "2736"]
[Result "0-1"]
[Round "07"]
[TimeControl "180+2"]
[Date "2023.05.03"]
[WhiteClock "0:00:00"]
[BlackClock "0:00:00"]

1. e4 {[%clk 0:00:01]}  c5 {[%clk 0:00:01]} 2. c3 {[%clk 0:00:01]}  e5 {[%clk 0:00:01]} 3. Nf3 {[%clk 0:00:01]}  Nc6 {[%clk 0:00:01]} 4. Bc4 {[%clk 0:00:01]}  Qc7 {[%clk 0:00:01]} 5. O-O {[%clk 0:00:01]}  Be7 {[%clk 0:00:01]} 6. d4 {[%clk 0:00:01]}  cxd4 {[%clk 0:00:01]} 7. cxd4 {[%clk 0:00:01]}  Nxd4 {[%clk 0:00:01]} 8. Nxd4 {[%clk 0:00:01]}  Qxc4 {[%clk 0:00:01]} 9. Nf5 {[%clk 0:00:01]}  Qxe4 {[%clk 0:00:01]} 10. Nxg7+ {[%clk 0:00:00]}  Kf8 {[%clk 0:00:01]} 11. Re1 {[%clk 0:00:00]}  Qg6 {[%clk 0:00:01]} 12. Nh5 {[%clk 0:00:00]}  d6 {[%clk 0:00:01]} 13. Ng3 {[%clk 0:00:00]}  h5 {[%clk 0:00:01]} 14. Nc3 {[%clk 0:00:00]}  h4 {[%clk 0:00:01]} 15. Nge4 {[%clk 0:00:00]}  f5 {[%clk 0:00:01]} 16. Qf3 {[%clk 0:00:00]}  Kg7 {[%clk 0:00:01]} 17. Nd2 {[%clk 0:00:00]}  Nf6 {[%clk 0:00:01]} 18. Nc4 {[%clk 0:00:00]}  Rg8 {[%clk 0:00:00]} 19. Bf4 {[%clk 0:00:00]}  Kh7 {[%clk 0:00:00]} 20. Rad1 {[%clk 0:00:00]}  Qg4 {[%clk 0:00:00]} 21. Qxg4 {[%clk 0:00:00]}  Rxg4 {[%clk 0:00:00]} 22. Nxe5 {[%clk 0:00:00]}  dxe5 {[%clk 0:00:00]} 23. Bxe5 {[%clk 0:00:00]}  h3 {[%clk 0:00:00]} 24. g3 {[%clk 0:00:00]}  Rg8 {[%clk 0:00:00]} 25. Bd4 {[%clk 0:00:00]}  Bd8 {[%clk 0:00:00]} 26. Be5 {[%clk 0:00:00]}  Ng4 {[%clk 0:00:00]} 27. Bd4 {[%clk 0:00:00]}  f4 {[%clk 0:00:00]} 28. Nd5 {[%clk 0:00:00]}  fxg3 {[%clk 0:00:00]} 29. fxg3 {[%clk 0:00:00]}  Bf5 {[%clk 0:00:00]} 30. Ne7 {[%clk 0:00:00]}  Bxe7 {[%clk 0:00:00]} 31. Rxe7+ {[%clk 0:00:00]}  Kg6 {[%clk 0:00:00]} 32. Rf1 {[%clk 0:00:00]}  Rae8 {[%clk 0:00:00]} 33. Rfe1 {[%clk 0:00:00]}  Rxe7 {[%clk 0:00:00]} 34. Rxe7 {[%clk 0:00:00]}  Rd8 {[%clk 0:00:00]} 35. Rg7+ {[%clk 0:00:00]}  Kh6 {[%clk 0:00:00]} 0-1


[Site "https://www.chess.com"]